bitfinex/quotes_ETHUSD_20250906
["timestamp","ask_amount","ask_price","bid_price","bid_amount"]
[1757121932008,8.42989799,4310.0,4309.9,6.158]
[1757121932205,8.74289799,4310.0,4309.9,6.158]
[1757121932740,9.43841066,4310.0,4309.9,6.158]
[1757121932927,9.12541066,4310.0,4309.9,6.158]
[1757121934412,9.12541066,4310.0,4309.9,8.7365]
[1757121934736,9.12541066,4310.0,4309.9,8.38892135]
[1757121934937,6.68841066,4310.0,4309.9,8.86192135]
[1757121935146,5.99289799,4310.0,4309.9,8.5143427]
[1757121935519,5.99289799,4310.0,4309.9,24.7113427]
[1757121936948,6.68837357,4310.0,4309.9,15.5473427]
[1757121937350,5.99289799,4310.0,4309.9,15.5473427]
[1757121937922,8.42989799,4310.0,4309.9,15.5473427]
[1757121938129,6.68837358,4310.0,4309.9,15.5473427]
[1757121938754,5.99289799,4310.0,4309.9,15.5473427]
[1757121939316,5.99289799,4310.0,4309.9,8.5143427]
[1757121943649,1.28925945,4310.0,4309.9,8.5143427]
[1757121943848,2.08125945,4310.0,4309.9,8.5143427]
[1757121945355,2.08125945,4310.0,4309.9,11.2843427]
[1757121945536,2.08125945,4310.0,4309.9,24.7113427]
[1757121951640,2.08125945,4310.0,4309.9,15.5473427]
[1757121953800,2.08125945,4310.0,4309.9,8.5143427]
[1757121953999,2.2894854,4310.0,4309.9,8.5143427]
[1757121955459,2.2894854,4310.0,4309.9,24.7113427]
[1757121957271,1.92677593,4310.0,4309.9,24.7113427]
[1757121959289,2.21377593,4310.0,4309.9,5.4628427]
[1757121960105,1.92677593,4310.0,4309.9,5.4628427]
[1757121960425,1.92677593,4310.0,4309.9,8.0715427]
[1757121960927,1.92777593,4310.0,4309.9,8.5009427]
[1757121961630,1.92777593,4310.0,4309.9,5.7639427]
[1757121961931,1.92777593,4310.0,4309.9,5.4628427]
[1757121961932,2.21477593,4310.0,4309.9,5.4628427]
[1757121962233,2.21477593,4310.0,4309.9,1.6208427]
[1757121962534,2.64907593,4310.0,4309.9,5.4628427]
[1757121963439,3.34451444,4310.0,4309.9,5.4628427]
[1757121964645,2.62321444,4310.0,4309.9,5.4628427]
[1757121964847,2.62321444,4310.0,4309.9,1.6208427]
[1757121965056,2.62321444,4310.0,4309.9,8.0715427]
[1757121965262,2.62321444,4310.0,4309.9,4.2295427]
[1757121965477,2.62321444,4310.0,4309.9,17.8178427]
[1757121965778,2.91021444,4310.0,4309.9,3.3258427]
[1757121966076,2.91021444,4310.0,4309.9,5.4628427]
[1757121966467,2.91021444,4310.0,4309.9,1.6208427]
[1757121966633,2.91021444,4310.0,4309.9,5.4628427]
[1757121968978,3.34451444,4310.0,4309.9,5.4628427]
[1757121969488,3.34451444,4310.0,4309.9,1.6208427]
[1757121969836,3.34451444,4310.0,4309.9,5.4628427]
[1757121971477,2.9149566,4310.0,4309.9,5.4628427]
[1757121971674,2.4806566,4310.0,4309.9,5.4628427]
[1757121971841,2.1936566,4310.0,4309.9,5.4628427]
[1757121972572,2.1936566,4310.0,4309.9,8.0481427]
[1757121972743,1.49821809,4310.0,4309.9,8.0481427]
[1757121973075,1.49821809,4310.0,4309.9,4.2061427]
[1757121973277,1.49821809,4310.0,4309.9,8.0481427]
[1757121975579,1.49821809,4310.0,4309.9,24.2451427]
[1757121976859,1.49821809,4310.0,4309.9,24.6799427]
[1757121978774,4.49821809,4310.0,4309.9,15.5159427]
[1757121979007,4.49850892,4310.0,4309.9,10.1879427]
[1757121981976,4.92806676,4310.0,4309.9,10.1879427]
[1757121982638,4.92806676,4310.0,4309.9,8.4829427]
[1757121985416,4.92806676,4310.0,4309.9,22.9749427]
[1757121985597,4.92806676,4310.0,4309.9,24.6799427]
[1757121990398,4.92806676,4310.0,4309.9,21.6598427]
[1757121990735,5.22546676,4310.0,4309.9,21.6598427]
[1757121992593,5.22546676,4310.0,4309.9,5.11534216]
[1757121992820,4.72818379,4310.0,4309.9,5.11534216]
[1757121993025,5.22541694,4310.0,4309.9,5.11534216]
[1757121993914,4.92801694,4310.0,4309.9,5.11534216]
[1757121995253,4.92801694,4310.0,4309.9,5.40974216]
[1757121995446,4.92801694,4310.0,4309.9,23.89764216]
[1757121995949,0.92779099,4310.0,4309.9,21.56244216]
[1757121996247,1.71979099,4310.0,4309.9,15.16844216]
[1757121996610,0.793,4310.0,4309.9,15.16844216]
[1757121997458,0.793,4310.0,4309.9,8.13544216]
[1757121997607,0.001,4310.0,4309.9,8.13544216]
[1757121998004,0.001,4310.0,4309.9,8.22813786]
[1757121998235,0.001,4310.0,4309.9,4.38613786]
[1757121998506,0.001,4310.0,4309.9,5.11434216]
[1757121998905,0.001,4310.0,4309.9,5.40874216]
[1757121999102,0.001,4310.0,4309.9,7.69964216]
[1757122000727,0.001,4310.0,4309.9,8.14844216]
[1757122002740,0.793,4310.0,4309.9,8.14844216]
[1757122005452,0.793,4310.0,4309.9,24.34444216]
[1757122006540,0.001,4310.0,4309.9,21.57444216]
[1757122008421,0.001,4310.0,4309.9,9.85344216]
[1757122008627,0.001,4310.0,4309.9,8.14844216]
[1757122014307,0.001,4310.0,4309.9,7.69964216]
[1757122014489,0.001,4310.0,4309.9,8.14844216]
[1757122015356,0.001,4310.0,4309.9,17.31144216]
[1757122015697,0.001,4310.0,4309.9,24.34344216]
[1757122016610,0.001,4310.0,4309.9,21.57344216]
[1757122020413,0.001,4310.0,4309.9,8.14844216]
[1757122020627,0.001,4310.0,4309.9,7.69964216]
[1757122020921,1.5219,4310.0,4309.9,5.11434216]
[1757122021109,1.67419,4310.0,4309.9,5.11434216]
[1757122021634,0.8804219,4310.0,4309.9,5.11434216]
[1757122021813,1.1782219,4310.0,4309.9,5.11434216]
[1757122023298,1.67469651,4310.0,4309.9,5.11434216]
[1757122023500,2.10425435,4310.0,4309.9,5.11434216]
[1757122024950,1.37689651,4310.0,4309.9,5.11434216]
[1757122025128,1.22460651,4310.0,4309.9,7.62404216]
[1757122025300,1.22460651,4310.0,4309.9,8.07284216]
[1757122025507,1.22460651,4310.0,4309.9,24.26684216]
[1757122026508,0.86195301,4310.0,4309.9,24.26684216]
[1757122026939,0.79427461,4310.0,4309.9,21.30834216]
[1757122028741,2.17610207,4310.0,4309.9,21.30734216]
[1757122029059,2.17610207,4310.0,4309.9,18.53734216]
[1757122030021,2.17610207,4310.0,4309.9,5.11334216]
[1757122032350,1.67962746,4310.0,4309.9,5.11334216]
[1757122033442,1.68062746,4310.0,4309.9,5.11334216]
[1757122034013,1.68062746,4310.0,4309.9,1.27334216]
[1757122034345,1.68062746,4310.0,4309.9,5.11434216]
[1757122034928,2.1767489,4310.0,4309.9,5.11434216]
[1757122035308,2.17520674,4310.0,4309.9,5.11434216]
[1757122035626,2.17520674,4310.0,4309.9,21.30934216]
[1757122038159,2.17520674,4310.0,4309.9,12.14634216]
[1757122042270,2.17520674,4310.0,4309.9,5.11434216]
[1757122044456,2.17520674,4310.0,4309.9,1.27334216]
[1757122044646,2.17520674,4310.0,4309.9,5.11434216]
[1757122044841,2.64010674,4310.0,4309.9,5.11434216]
[1757122045047,5.64010674,4310.0,4309.9,5.11434216]
[1757122045369,5.64010674,4310.0,4309.9,7.90834216]
[1757122045545,5.17520674,4310.0,4309.9,17.49334216]
[1757122045747,5.17520674,4310.0,4309.9,21.33434216]
[1757122045972,5.64010674,4310.0,4309.9,21.33434216]
[1757122047434,5.17520674,4310.0,4309.9,17.49334216]
[1757122047658,5.17520674,4310.0,4309.9,21.33434216]
[1757122048777,5.17520674,4310.0,4309.9,6.84334216]
[1757122049577,5.17520674,4310.0,4309.9,6.49579251]
[1757122050379,5.17520674,4310.0,4309.9,6.14823641]
[1757122050540,5.17520674,4310.0,4309.9,4.44323641]
[1757122050738,5.17520674,4310.0,4309.9,4.09568031]
[1757122051567,3.908,4309.9,4309.8,0.029]
[1757122051781,2.54219693,4309.9,4309.8,0.029]
[1757122051984,2.84649693,4309.9,4309.8,2.345]
[1757122052810,2.84649693,4309.9,4309.8,6.186]
[1757122055443,2.84649693,4309.9,4309.8,22.383]
[1757122056487,2.84649693,4309.9,4309.8,18.542]
[1757122056660,2.84649693,4309.9,4309.8,22.383]
[1757122058185,2.84649693,4309.9,4309.8,22.03543343]
[1757122058486,2.84649693,4309.9,4309.8,19.26543343]
[1757122058658,2.84649693,4309.9,4309.8,12.87143343]
[1757122058976,2.84649693,4309.9,4309.8,7.19486686]
[1757122059182,2.84741331,4309.9,4309.8,1.64986686]
[1757122059385,2.84741331,4309.9,4309.8,5.48986686]
[1757122060852,2.84741331,4309.9,4309.8,5.14230029]
[1757122062195,5.84741331,4309.9,4309.8,5.14230029]
[1757122064991,6.27697115,4309.9,4309.8,5.14230029]
[1757122065421,6.27697115,4309.9,4309.8,14.30630029]
[1757122065633,6.27697115,4309.9,4309.8,21.33930029]
[1757122067224,6.27697115,4309.9,4309.8,18.56930029]
[1757122067526,6.27697115,4309.9,4309.8,12.17530029]
[1757122068428,6.27697115,4309.9,4309.8,12.17930029]
[1757122069242,6.27697115,4309.9,4309.8,6.85130029]
[1757122069545,6.27697115,4309.9,4309.8,5.14630029]
[1757122070482,6.27697115,4309.9,4309.8,1.30630029]
[1757122070834,6.27697115,4309.9,4309.8,5.00930029]
[1757122070989,5.97267115,4309.9,4309.8,5.00930029]
[1757122071528,4.71859566,4309.9,4309.8,7.80680029]
[1757122075558,4.71859566,4309.9,4309.8,24.00380029]
[1757122079458,4.71859566,4309.9,4309.8,9.51180029]
[1757122081673,4.71859566,4309.9,4309.8,7.80680029]
[1757122082574,5.19065523,4309.9,4309.8,7.80680029]
[1757122084945,5.19065523,4309.9,4309.8,7.35080029]
[1757122085137,5.19065523,4309.9,4309.8,7.80680029]
[1757122085333,5.19065523,4309.9,4309.8,10.57680029]
[1757122085538,4.76109739,4309.9,4309.8,21.49190029]
[1757122086236,4.76109739,4309.9,4309.8,24.00380029]
[1757122086638,4.76109739,4309.9,4309.8,11.13680029]
[1757122086946,4.76209739,4309.9,4309.8,14.97680029]
[1757122087855,4.76209739,4309.9,4309.8,9.64880029]
[1757122089621,4.76209739,4309.9,4309.8,4.10380029]
[1757122089752,4.76209739,4309.9,4309.8,7.94380029]
[1757122090186,4.76209739,4309.9,4309.8,4.10380029]
[1757122090402,4.76209739,4309.9,4309.8,7.94380029]
[1757122095083,4.76209739,4309.9,4309.8,7.48780029]
[1757122095288,4.76202483,4309.9,4309.8,7.48780029]
[1757122095497,4.76202483,4309.9,4309.8,23.68480029]
[1757122095700,5.06632483,4309.9,4309.8,21.34330029]
[1757122096730,4.76202483,4309.9,4309.8,21.34330029]
[1757122097204,5.07602483,4309.9,4309.8,21.34330029]
[1757122097715,5.50558267,4309.9,4309.8,21.34330029]
[1757122099620,5.50558267,4309.9,4309.8,6.85130029]
[1757122099828,5.50558267,4309.9,4309.8,5.14630029]
[1757122102796,5.50597424,4309.9,4309.8,5.14630029]
[1757122103481,5.19197424,4309.9,4309.8,5.14630029]
[1757122105446,5.19197424,4309.9,4309.8,21.34330029]
[1757122107614,5.19197424,4309.9,4309.8,12.17930029]
[1757122107946,5.19197424,4309.9,4309.8,14.50160029]
[1757122108142,5.19197424,4309.9,4309.8,14.93010029]
[1757122108518,5.19197424,4309.9,4309.8,9.60210029]
[1757122108862,4.71991467,4309.9,4309.8,9.60210029]
[1757122110407,4.71981076,4309.9,4309.8,9.60210029]
[1757122110670,4.71981076,4309.9,4309.8,7.89710029]
[1757122111307,4.79501076,4309.9,4309.8,7.89710029]
[1757122111756,0.50575784,4309.9,4309.8,7.89710029]
[1757122115472,0.50575784,4309.9,4309.8,24.09310029]
[1757122116361,0.50575784,4309.9,4309.8,23.66460029]
[1757122116568,0.50575784,4309.9,4309.8,24.09310029]
[1757122117062,0.50575784,4309.9,4309.8,21.63250029]
[1757122117376,0.50575784,4309.9,4309.8,24.09310029]
[1757122119740,0.50575784,4309.9,4309.8,14.93010029]
[1757122120073,0.50575784,4309.9,4309.8,9.60210029]
[1757122121750,0.50575784,4309.9,4309.8,7.89710029]
[1757122123853,1.58595784,4309.9,4309.8,1.30630029]
[1757122124054,7.71582315,4309.9,4309.8,5.14530029]
[1757122125443,7.71582315,4309.9,4309.8,21.33930029]
[1757122126142,7.71582315,4309.9,4309.8,17.50030029]
[1757122126349,7.71582315,4309.9,4309.8,21.33930029]
[1757122130143,7.71582315,4309.9,4309.8,18.56930029]
[1757122130348,7.71582315,4309.9,4309.8,12.17630029]
[1757122130576,5.87152315,4309.9,4309.8,12.17630029]
[1757122133792,5.87152315,4309.9,4309.8,5.14530029]
[1757122134170,5.37508362,4309.9,4309.8,5.14530029]
[1757122135409,5.37508362,4309.9,4309.8,19.63630029]
[1757122135605,5.37508362,4309.9,4309.8,21.34130029]
[1757122138022,4.92918362,4309.9,4309.8,18.57130029]
[1757122140918,1.92918362,4309.9,4309.8,5.14530029]
[1757122141408,1.49962578,4309.9,4309.8,5.14530029]
[1757122143020,1.21142578,4309.9,4309.8,5.14530029]
[1757122143220,0.8682,4309.9,4309.8,7.96830029]
[1757122144405,0.8682,4309.9,4309.8,4.12930029]
[1757122144613,0.8682,4309.9,4309.8,7.96830029]
[1757122145500,0.8682,4309.9,4309.8,24.16530029]
[1757122146008,0.8682,4309.9,4309.8,21.39530029]
[1757122146218,0.8682,4309.9,4309.8,15.00130029]
[1757122146219,1.0247632,4309.9,4309.8,15.00130029]
[1757122147112,1.0247632,4309.9,4309.8,7.96830029]
[1757122155346,1.0247632,4309.9,4309.8,10.73830029]
[1757122155552,1.0247632,4309.9,4309.8,24.16530029]
[1757122156951,1.45432104,4309.9,4309.8,24.16530029]
[1757122159129,1.45432104,4309.9,4309.8,21.39530029]
[1757122160399,1.45432104,4309.9,4309.8,18.57230029]
[1757122160956,1.75772104,4309.9,4309.8,18.57230029]
[1757122162312,1.45432104,4309.9,4309.8,18.57230029]
[1757122162997,1.45432104,4309.9,4309.8,18.86740029]
[1757122163175,1.45432104,4309.9,4309.8,12.47340029]
[1757122165015,1.45432104,4309.9,4309.8,7.14540029]
[1757122165216,1.45432104,4309.9,4309.8,9.16910029]
[1757122165447,1.45432104,4309.9,4309.8,23.66110029]
[1757122167259,1.45432104,4309.9,4309.8,20.89110029]
[1757122167405,1.45432104,4309.9,4309.8,14.49710029]
[1757122167960,1.45432104,4309.9,4309.8,14.94410029]
[1757122169126,1.45432104,4309.9,4309.8,7.91110029]
[1757122175346,1.09160254,4309.9,4309.8,7.91110029]
[1757122175650,1.09160254,4309.9,4309.8,24.10810029]
[1757122175852,0.93503934,4309.9,4309.8,24.10810029]
[1757122176424,1.23843934,4309.9,4309.8,21.34230029]
[1757122176830,0.93503934,4309.9,4309.8,21.34230029]
[1757122177966,0.93503934,4309.9,4309.8,21.63740029]
[1757122179334,0.93503934,4309.9,4309.8,21.71260029]
[1757122179757,0.93503934,4309.9,4309.8,12.54860029]
[1757122183440,0.93503934,4309.9,4309.8,12.25350029]
[1757122183782,1.8911596,4309.9,4309.8,5.22050029]
[1757122185362,1.8911596,4309.9,4309.8,19.71250029]
[1757122185708,0.93503934,4309.9,4309.8,21.70480029]
[1757122186059,0.93503934,4309.9,4309.8,17.86580029]
[1757122186374,0.93503934,4309.9,4309.8,21.70380029]
[1757122187504,0.93503934,4309.9,4309.8,21.41650029]
[1757122188317,0.93503934,4309.9,4309.8,18.64650029]
[1757122189995,7.80632282,4309.9,4309.8,1.38150029]
[1757122190204,10.80632282,4309.9,4309.8,3.91750029]
[1757122191979,10.80732282,4309.9,4309.8,3.91750029]
[1757122192409,10.80732282,4309.9,4309.8,1.38150029]
[1757122192608,10.80732282,4309.9,4309.8,5.21950029]
[1757122193371,10.80732282,4309.9,4309.8,1.38150029]
[1757122193612,10.80732282,4309.9,4309.8,5.21950029]
[1757122194113,10.80732282,4309.9,4309.8,1.38150029]
[1757122194286,10.80732282,4309.9,4309.8,5.21950029]
[1757122195392,10.80732282,4309.9,4309.8,19.71150029]
[1757122195593,10.80732282,4309.9,4309.8,21.41650029]
[1757122196300,10.80732282,4309.9,4309.8,18.64650029]
[1757122196607,10.80732282,4309.9,4309.8,12.25250029]
[1757122198213,10.80732282,4309.9,4309.8,5.21950029]
[1757122200327,3.93603934,4309.9,4309.8,7.88530029]
[1757122200834,3.93603934,4309.9,4309.8,7.14270029]
[1757122201040,3.93603934,4309.9,4309.8,5.21950029]
[1757122205378,3.93603934,4309.9,4309.8,7.98950029]
[1757122205555,3.93603934,4309.9,4309.8,21.41650029]
[1757122207484,0.93603934,4309.9,4309.8,21.41650029]
[1757122207632,1.5922596,4309.9,4309.8,1.38150029]
[1757122207828,1.8832596,4309.9,4309.8,5.21850029]
[1757122209271,4.8832596,4309.9,4309.8,5.21850029]
[1757122209570,4.8832596,4309.9,4309.8,4.87095547]
[1757122209767,4.45370176,4309.9,4309.8,4.87095547]
[1757122209977,4.45370176,4309.9,4309.8,4.52341065]
[1757122210133,4.45370176,4309.9,4309.8,0.68641065]
[1757122210339,4.92140176,4309.9,4309.8,2.22686583]
[1757122210652,6.56860176,4309.9,4309.8,4.17586583]
[1757122210845,0.792,4309.8,4309.5,1.35800781]
[1757122211053,9.70376322,4309.6,4309.5,1.10800781]
[1757122211356,10.17146322,4309.6,4309.5,6.56046299]
[1757122211679,10.85367882,4309.6,4309.5,6.1626868]
[1757122211865,10.85367882,4309.6,4309.5,5.81514198]
[1757122212279,10.85367882,4309.6,4309.5,5.8]
[1757122212574,12.32387719,4309.6,4309.5,5.8]
[1757122212960,13.98440973,4309.6,4309.5,6.154]
[1757122213542,13.98440973,4309.6,4309.5,5.80645518]
[1757122215375,13.98440973,4309.6,4309.5,14.97145518]
[1757122215572,14.91487892,4309.6,4309.5,22.00445518]
[1757122215879,13.26767892,4309.6,4309.5,18.16745518]
[1757122216083,13.26767892,4309.6,4309.5,22.00545518]
[1757122216288,13.26767892,4309.6,4309.5,22.00445518]
[1757122218179,13.26767892,4309.6,4309.5,19.23345518]
[1757122220194,13.26767892,4309.6,4309.5,5.80645518]
[1757122220974,12.79997892,4309.6,4309.5,5.80645518]
[1757122222303,6.67490435,4309.6,4309.5,5.80645518]
[1757122223698,7.14260435,4309.6,4309.5,5.80745518]
[1757122224918,7.14260435,4309.6,4309.5,1.96945518]
[1757122225120,7.14260435,4309.6,4309.5,5.80745518]
[1757122225477,7.14260435,4309.6,4309.5,22.00745518]
[1757122225682,7.14260435,4309.6,4309.5,22.01145518]
[1757122225879,7.14360435,4309.6,4309.5,22.01145518]
[1757122226985,6.67590435,4309.6,4309.5,22.01145518]
[1757122228502,5.20570598,4309.6,4309.5,22.01145518]
[1757122231049,5.20570598,4309.6,4309.5,12.84545518]
[1757122232946,5.20570598,4309.6,4309.5,5.81145518]
[1757122235397,5.20570598,4309.6,4309.5,14.97745518]
[1757122235603,5.20570598,4309.6,4309.5,22.01145518]
[1757122235766,5.7919986,4309.6,4309.5,22.01145518]
[1757122236622,5.7919986,4309.6,4309.5,7.30245518]
[1757122236899,6.2596986,4309.6,4309.5,7.51645518]
[1757122237397,6.2596986,4309.6,4309.5,5.81145518]
[1757122238178,6.2596986,4309.6,4309.5,1.97345518]
[1757122238363,7.8381986,4309.6,4309.5,5.81145518]
[1757122239100,7.8381986,4309.6,4309.5,1.97345518]
[1757122239269,7.8381986,4309.6,4309.5,5.81145518]
[1757122239945,7.40864076,4309.6,4309.5,5.38189734]
[1757122240146,6.94094076,4309.6,4309.5,1.54389734]
[1757122240392,7.38664076,4309.6,4309.5,5.38189734]
[1757122240603,3.792,4309.5,4309.4,2.321]
[1757122240896,12.37083241,4309.5,4309.4,4.92]
[1757122241073,12.65713241,4309.5,4309.4,4.92]
[1757122241268,13.99855747,4309.5,4309.4,4.92]
[1757122241793,13.11580886,4309.5,4309.4,4.92]
[1757122245393,13.11580886,4309.5,4309.4,14.087]
[1757122245566,13.11580886,4309.5,4309.4,21.122]
[1757122247115,9.05717645,4309.5,4309.4,23.7104]
[1757122247265,7.71575139,4309.5,4309.4,23.7104]
[1757122247465,10.71575139,4309.5,4309.4,20.9394]
[1757122247666,7.02,4309.5,4309.4,14.5434]
[1757122247915,10.812,4309.5,4309.4,14.5434]
[1757122248100,10.02,4309.5,4309.4,14.5434]
[1757122248884,10.812,4309.5,4309.4,14.5434]
[1757122249082,10.02,4309.5,4309.4,14.5434]
[1757122249293,10.812,4309.5,4309.4,14.5434]
[1757122249702,11.98219441,4309.5,4309.4,14.5434]
[1757122251324,10.812,4309.5,4309.4,7.5084]
[1757122252072,3.0,4309.5,4309.4,7.5084]
[1757122252301,0.021,4309.6,4309.4,7.5084]
[1757122252614,0.021,4309.6,4309.5,2.2992]
[1757122252969,0.021,4309.6,4309.5,2.5884]
[1757122255404,0.021,4309.6,4309.5,18.7884]
[1757122257820,10.833,4309.6,4309.5,16.0174]
[1757122259547,10.041,4309.6,4309.5,9.6224]
[1757122259750,10.041,4309.6,4309.5,9.1804]
[1757122259907,11.8372,4309.6,4309.5,13.4624]
[1757122261728,11.8372,4309.6,4309.5,6.4284]
[1757122262417,4.8172,4309.6,4309.5,3.84]
[1757122262636,4.0993,4309.6,4309.5,3.84]
[1757122262839,3.792,4309.5,4309.4,2.321]
[1757122263056,3.792,4309.5,4309.4,6.172]
[1757122263057,0.792,4309.5,4309.4,6.172]
[1757122263222,1.0783,4309.5,4309.4,6.172]
[1757122263421,1.77387072,4309.5,4309.4,6.172]
[1757122263620,1.99792779,4309.5,4309.4,6.172]
[1757122264153,8.5525602,4309.5,4309.4,2.321]
[1757122264327,13.5492602,4309.5,4309.4,6.172]
[1757122265512,13.5492602,4309.5,4309.4,22.372]
[1757122266450,11.9982602,4309.5,4309.4,15.75]
[1757122266629,11.9982602,4309.5,4309.4,4.026]
[1757122266828,11.9982602,4309.5,4309.4,7.877]
[1757122267026,11.9982602,4309.5,4309.4,6.172]
[1757122267027,13.5492602,4309.5,4309.4,6.172]
[1757122268016,13.5492602,4309.5,4309.4,2.321]
[1757122268340,13.5492602,4309.5,4309.4,6.173]
[1757122269055,13.5492602,4309.5,4309.4,6.172]
[1757122271855,13.5492602,4309.5,4309.4,2.321]
[1757122272351,3.792,4309.4,4309.3,0.004]
[1757122272512,3.792,4309.4,4309.3,3.068]
[1757122272513,5.28812602,4309.4,4309.3,3.068]
[1757122272714,7.58192602,4309.4,4309.3,3.068]
[1757122273062,7.58192602,4309.4,4309.3,0.004]
[1757122273522,7.58192602,4309.4,4309.3,3.07]
[1757122274118,8.471,4309.1,4309.0,2.67983568]
[1757122274416,10.4398926,4309.1,4309.0,2.67983568]
[1757122274858,11.1356795,4309.1,4309.0,2.67983568]
[1757122275429,12.6425795,4309.1,4309.0,22.73283568]
[1757122276060,12.6425795,4309.1,4309.0,17.64483568]
[1757122276061,14.0335795,4309.1,4309.0,17.64483568]
[1757122276215,14.0335795,4309.1,4309.0,17.29714827]
[1757122276420,14.0335795,4309.1,4309.0,17.282]
[1757122276736,3.792,4309.0,4308.8,0.025]
[1757122276932,13.63609036,4309.0,4308.8,0.025]
[1757122277135,20.44889036,4309.0,4308.4,1.97428922]
[1757122277339,3.792,4308.4,4308.1,0.02]
[1757122277560,9.42381674,4308.2,4308.1,0.02]
[1757122277861,11.03959841,4308.2,4308.1,0.02]
[1757122278048,11.03959841,4308.2,4308.1,3.872]
[1757122278221,3.792,4308.1,4307.9,1.99028922]
[1757122278420,8.471,4308.1,4307.9,1.99028922]
[1757122278726,8.471,4308.1,4307.9,1.64257844]
[1757122278950,2.42027117,4308.0,4307.9,1.64257844]
[1757122279152,2.42027117,4308.0,4307.9,1.29486766]
[1757122279470,2.42027117,4308.0,4307.9,1.31009623]
[1757122279471,6.11621786,4308.0,4307.9,1.31009623]
[1757122279633,6.41041786,4308.0,4307.9,1.31009623]
[1757122279836,6.85901786,4308.0,4307.9,3.91138545]
[1757122280156,6.41041786,4308.0,4307.9,3.91138545]
[1757122280456,6.11621786,4308.0,4307.9,5.72967467]
[1757122280658,6.11621786,4308.0,4307.9,7.69996389]
[1757122281027,6.11621786,4308.0,4307.9,4.57088922]
[1757122281732,6.11621786,4308.0,4307.2,0.36290225]
[1757122281733,0.792,4307.3,4307.2,0.36290225]
[1757122281933,0.792,4307.3,4307.2,2.68090225]
[1757122282122,0.792,4307.3,4307.2,2.96860225]
[1757122282323,1.4879483,4307.3,4307.2,2.96860225]
[1757122282745,1.4879483,4307.3,4307.2,6.03060225]
[1757122283256,0.08311078,4307.4,4307.2,6.03060225]
[1757122283561,0.08311078,4307.4,4307.3,2.3129]
[1757122283793,0.87511078,4307.4,4307.3,2.3129]
[1757122283937,0.87511078,4307.4,4307.3,2.6006]
[1757122285074,1.03220942,4307.4,4307.3,6.02]
[1757122285379,9.50692752,4307.4,4307.3,15.189]
[1757122285537,9.50692752,4307.4,4307.3,22.226]
[1757122285737,3.87511078,4307.4,4307.3,22.226]
[1757122286140,9.50692752,4307.4,4307.3,16.206]
[1757122286441,11.91539804,4307.4,4307.3,22.226]
[1757122287179,11.91539804,4307.4,4307.3,7.728]
[1757122287382,11.91539804,4307.4,4307.3,6.022]
[1757122287539,11.91539804,4307.4,4307.3,2.166]
[1757122287741,11.91539804,4307.4,4307.3,6.021]
[1757122291191,11.91539804,4307.4,4307.3,4.1427]
[1757122291386,11.91539804,4307.4,4307.3,0.2877]
[1757122291552,11.91539804,4307.4,4307.3,3.855]
[1757122292379,11.91539804,4307.4,4307.3,4.1417]
[1757122292691,0.792,4307.3,4307.2,2.25788682]
[1757122292858,2.59158148,4307.3,4307.2,4.13618682]
[1757122293059,2.59158148,4307.3,4307.2,4.42388682]
[1757122293685,5.59158148,4307.3,4307.2,8.27888682]
[1757122294889,5.59158148,4307.3,4307.2,6.11188682]
[1757122295590,5.59158148,4307.3,4307.2,22.31988682]
[1757122295888,6.04018148,4307.3,4307.2,22.31988682]
[1757122296051,6.33438148,4307.3,4307.2,19.54788682]
[1757122296689,6.58174755,4307.3,4307.2,19.54788682]
[1757122296895,7.03034755,4307.3,4307.2,19.54788682]
[1757122297518,7.03034755,4307.3,4307.2,9.29588682]
[1757122297681,7.03034755,4307.3,4307.2,6.11188682]
[1757122297881,7.03034755,4307.3,4307.2,2.25788682]
[1757122298060,6.73614755,4307.3,4307.2,6.11188682]
[1757122298400,6.28754755,4307.3,4307.2,6.11188682]
[1757122298595,6.73614755,4307.3,4307.2,6.11088682]
[1757122299314,13.30754755,4307.3,4307.2,6.11088682]
[1757122299610,13.30754755,4307.3,4307.2,8.00828682]
[1757122299825,12.61158148,4307.3,4307.2,8.31218682]
[1757122300794,12.61158148,4307.3,4307.2,8.00828682]
[1757122301521,12.61158148,4307.3,4307.2,8.31218682]
[1757122304377,13.35488148,4307.3,4307.2,6.11088682]
[1757122305407,13.35488148,4307.3,4307.2,22.31888682]
[1757122305830,13.06818148,4307.3,4307.2,22.31888682]
[1757122306825,13.35488148,4307.3,4307.2,18.46588682]
[1757122307030,13.35488148,4307.3,4307.2,22.31788682]
[1757122307225,13.37488148,4307.3,4307.2,18.46588682]
[1757122307388,13.37488148,4307.3,4307.2,22.31788682]
[1757122308095,14.07084754,4307.3,4307.2,22.31788682]
[1757122309232,14.07084754,4307.3,4307.2,19.54588682]
[1757122311202,14.07084754,4307.3,4307.2,2.25788682]
[1757122311602,14.07084754,4307.3,4307.2,6.10888682]
[1757122314596,13.32754754,4307.3,4307.2,8.00628682]
[1757122314934,13.32754754,4307.3,4307.2,8.31018682]
[1757122315530,13.32754754,4307.3,4307.2,24.51818682]
[1757122315838,13.32754754,4307.3,4307.2,24.21428682]
[1757122316039,13.32754754,4307.3,4307.2,22.31688682]
[1757122316342,12.63158148,4307.3,4307.2,22.31688682]
[1757122316529,10.832,4307.3,4307.2,15.34818682]
[1757122316737,10.833,4307.3,4307.2,15.34818682]
[1757122317650,10.833,4307.3,4307.2,8.31018682]
[1757122317839,7.833,4307.3,4307.2,8.31018682]
[1757122318011,10.833,4307.3,4307.2,8.52798682]
[1757122318351,10.833,4307.3,4307.2,8.31018682]
[1757122320369,11.92461108,4307.3,4307.2,6.10888682]
[1757122320523,12.66791108,4307.3,4307.2,2.25788682]
[1757122320861,12.66791108,4307.3,4307.2,6.10788682]
[1757122322035,11.92461108,4307.3,4307.2,6.10788682]
[1757122322241,11.92461108,4307.3,4307.2,8.00528682]
[1757122322428,11.92461108,4307.3,4307.2,8.30918682]
[1757122323569,11.92461108,4307.3,4307.2,8.30818682]
[1757122325506,11.92461108,4307.3,4307.2,24.51618682]
[1757122326504,10.833,4307.3,4307.2,24.51618682]
[1757122327499,10.833,4307.3,4307.2,21.74418682]
[1757122329474,10.833,4307.3,4307.2,15.34618682]
[1757122329872,3.021,4307.3,4307.2,10.01418682]
[1757122330088,0.001,4307.8,4307.2,9.5298055]
[1757122330286,0.001,4307.8,4307.3,2.0021]
[1757122330486,0.001,4307.8,4307.4,3.852]
[1757122330688,0.001,4307.8,4307.7,0.2958]
[1757122330901,0.001,4307.8,4307.7,6.90368153]
[1757122331091,0.001,4307.8,4307.7,8.90578153]
[1757122331817,0.001,4307.8,4307.7,8.99852816]
[1757122332108,0.001,4307.8,4307.7,9.32556564]
[1757122332315,0.001,4307.8,4307.7,9.63155719]